fUST/lending_fUST_20250422
["ID","MTS","AMOUNT","RATE_DAILY","PERIOD"]
[358607034,1745308254730,-523.610922,0.00022191,2]
[358607035,1745308254740,-500.0,0.00022191,2]
[358607036,1745308254750,-523.610922,0.00022191,2]
[358607037,1745308254759,-523.610922,0.00022191,2]
[358607038,1745308254769,-211.999404,0.00022191,7]
[358607039,1745308254778,-523.610922,0.00022191,2]
[358607040,1745308254788,-290.45531093,0.00022191,2]
[358607041,1745308254798,-153.11154786,0.00022191,2]
[358607042,1745308254808,-500.0,0.00022191,2]
[358607043,1745308254818,-500.0,0.00022191,2]
[358607044,1745308254828,-500.0,0.00022191,2]
[358607045,1745308254838,-500.0,0.00022191,2]
[358607046,1745308254848,-550.52652958,0.00022191,2]
[358607047,1745308254859,-500.0,0.00022191,2]
[358607048,1745308254869,-504.72968403,0.00022191,2]
[358607049,1745308254879,-726.04,0.00022191,2]
[358607050,1745308254889,-501.17847287,0.00022191,2]
[358607051,1745308255011,-500.0,0.00022191,2]
[358607052,1745308255022,-826.32,0.00022191,2]
[358607053,1745308255032,-500.0,0.00022191,2]
[358607054,1745308255042,-501.47632685,0.00022191,2]
[358607055,1745308255053,-500.0,0.00022191,2]
[358607056,1745308255063,-500.0,0.00022191,2]
[358607057,1745308255073,-500.0,0.00022191,2]
[358607058,1745308255083,-500.0,0.00022191,2]
[358607059,1745308255092,-151.0,0.00022191,7]
[358607060,1745308255102,-290.708017,0.00022191,7]
[358607061,1745308255112,-500.0,0.00022191,2]
[358607062,1745308255122,-500.0,0.00022191,2]
[358607063,1745308255132,-536.42,0.00022191,2]
[358607064,1745308255142,-500.0,0.00022191,2]
[358607065,1745308255152,-504.87027715,0.00022191,2]
[358607066,1745308255162,-500.0,0.00022191,2]
[358607067,1745308255171,-509.47946963,0.00022191,2]
[358607068,1745308255181,-500.0,0.00022191,2]
[358607069,1745308255191,-484.44793066,0.00022191,2]
[358607070,1745308255201,-500.0,0.00022191,2]
[358607071,1745308255211,-500.0,0.00022191,2]
[358607072,1745308255221,-500.0,0.00022191,2]
[358607073,1745308255234,-500.0,0.00022191,2]
[358607074,1745308255245,-500.0,0.00022191,2]
[358607075,1745308255255,-500.0,0.00022191,2]
[358607076,1745308255265,-151.0,0.00022191,7]
[358607077,1745308255274,-151.0,0.00022191,7]
[358607078,1745308255284,-151.0,0.00022191,7]
[358607079,1745308255294,-262.01414729,0.00022191,2]
[358607080,1745308255304,-500.0,0.00022191,2]
[358607081,1745308255314,-501.74325227,0.00022191,2]
[358607082,1745308255325,-500.0,0.00022191,2]
[358607083,1745308255335,-285.154975,0.00022191,7]
[358607084,1745308255345,-285.154975,0.00022191,7]
[358607085,1745308255355,-285.154975,0.00022191,7]
[358607086,1745308255366,-500.0,0.00022191,2]
[358607087,1745308255375,-782.81,0.00022191,2]
[358607088,1745308255385,-285.154975,0.00022191,7]
[358607089,1745308255396,-285.154975,0.00022191,7]
[358607090,1745308255406,-285.154975,0.00022191,7]
[358607091,1745308255416,-500.0,0.00022191,2]
[358607092,1745308255427,-500.0,0.00022191,2]
[358607093,1745308255437,-500.0,0.00022191,2]
[358607094,1745308255446,-500.0,0.00022191,2]
[358607095,1745308255456,-500.0,0.00022191,2]
[358607096,1745308255466,-162.52023678,0.00022191,2]
[358607097,1745308255478,-500.0,0.00022191,2]
[358607098,1745308255488,-528.8990711,0.00022191,2]
[358607099,1745308255498,-500.0,0.00022191,2]
[358607100,1745308255508,-500.0,0.00022191,2]
[358607101,1745308255518,-500.0,0.00022191,2]
[358607102,1745308255528,-500.0,0.00022191,2]
[358607103,1745308255538,-500.0,0.00022191,2]
[358607104,1745308255548,-500.0,0.00022191,2]
[358607105,1745308255558,-500.0,0.00022191,2]
[358607106,1745308255568,-514.79736689,0.00022191,2]
[358607107,1745308255578,-500.0,0.00022191,2]
[358607108,1745308255588,-500.0,0.00022191,2]
[358607109,1745308255598,-500.0,0.00022191,2]
[358607110,1745308255608,-500.0,0.00022191,2]
[358607111,1745308255618,-598.40945778,0.00022191,2]
[358607112,1745308255628,-508.755488,0.00022191,2]
[358607113,1745308255638,-500.0,0.00022191,2]
[358607114,1745308255648,-500.0,0.00022191,2]
[358607115,1745308255658,-613.1,0.00022191,2]
[358607116,1745308255667,-501.44044594,0.00022191,2]
[358607117,1745308255677,-500.0,0.00022191,2]
[358607118,1745308255687,-502.59432456,0.00022191,2]
[358607119,1745308255696,-500.0,0.00022191,2]
[358607120,1745308255706,-189.04572447,0.00022191,2]
[358607121,1745308255716,-357.797494,0.00022191,7]
[358607122,1745308255727,-357.797494,0.00022191,7]
[358607123,1745308255737,-500.0,0.00022191,2]
[358607124,1745308255746,-357.797494,0.00022191,7]
[358607125,1745308255756,-504.1950519,0.00022191,2]
[358607126,1745308255765,-500.9594006,0.00022191,2]
[358607127,1745308255775,-500.0,0.00022191,2]
[358607128,1745308255785,-1084.11,0.00022191,2]
[358607129,1745308255794,-500.0,0.00022191,2]
[358607130,1745308255804,-644.78,0.00022191,2]
[358607131,1745308255813,-357.797494,0.00022191,7]
[358607132,1745308255823,-357.797494,0.00022191,7]
[358607133,1745308255832,-500.0,0.00022191,2]
[358607134,1745308255842,-357.797494,0.00022191,7]
[358607135,1745308255852,-500.0,0.00022191,2]
[358607136,1745308255861,-753.56,0.00022191,2]
[358607137,1745308255870,-229.05436689,0.00022191,2]
[358607138,1745308255880,-508.54937782,0.00022191,2]
[358607139,1745308255890,-500.0,0.00022191,2]
[358607140,1745308255899,-500.0,0.00022191,2]
[358607141,1745308255909,-500.0,0.00022191,2]
[358607142,1745308255920,-500.0,0.00022191,2]
[358607143,1745308255931,-500.0,0.00022191,2]
[358607144,1745308255941,-500.0,0.00022191,2]
[358607145,1745308255950,-1015.13,0.00022191,2]
[358607146,1745308255959,-500.0,0.00022191,2]
[358607147,1745308255968,-500.0,0.00022191,2]
[358607148,1745308255979,-500.0,0.00022191,2]
[358607149,1745308255988,-500.0,0.00022191,2]
[358607150,1745308255998,-500.0,0.00022191,2]
[358607151,1745308256007,-500.0,0.00022191,2]
[358607152,1745308256017,-500.0,0.00022191,2]
[358607153,1745308256029,-500.0,0.00022191,2]
[358607154,1745308256039,-500.0,0.00022191,2]
[358607155,1745308256051,-500.0,0.00022191,2]
[358607156,1745308256060,-578.17065626,0.00022191,2]
[358607157,1745308256070,-505.39067021,0.00022191,2]
[358607158,1745308256079,-500.0,0.00022191,2]
[358607159,1745308256088,-500.0,0.00022191,2]
[358607160,1745308256098,-500.0,0.00022191,2]
[358607161,1745308256108,-500.0,0.00022191,2]
[358607162,1745308256118,-707.62,0.00022191,2]
[358607163,1745308256127,-430.47101598,0.00022191,2]
[358607164,1745308256137,-500.0,0.00022191,2]
[358607165,1745308256147,-500.0,0.00022191,2]
[358607166,1745308256157,-534.82241297,0.00022191,2]
[358607167,1745308256167,-500.0,0.00022191,2]
[358607168,1745308256177,-500.0,0.00022191,2]
[358607169,1745308256187,-500.0,0.00022191,2]
[358607170,1745308256197,-500.0,0.00022191,2]
[358607171,1745308256206,-500.0,0.00022191,2]
[358607172,1745308256216,-500.0,0.00022191,2]
[358607173,1745308256226,-695.52,0.00022191,2]
[358607174,1745308256236,-500.0,0.00022191,2]
[358607175,1745308256247,-500.0,0.00022191,2]
[358607176,1745308256256,-500.0,0.00022191,2]
[358607177,1745308256266,-500.0,0.00022191,2]
[358607178,1745308256275,-500.0,0.00022191,2]
[358607179,1745308256286,-151.0,0.00022191,7]
[358607180,1745308256296,-500.0,0.00022191,2]
[358607181,1745308256305,-151.0,0.00022191,7]
[358607182,1745308256315,-151.0,0.00022191,7]
[358607183,1745308256324,-500.0,0.00022191,2]
[358607184,1745308256334,-500.0,0.00022191,2]
[358607185,1745308256343,-151.0,0.00022191,7]
[358607186,1745308256353,-151.0,0.00022191,7]
[358607187,1745308256363,-500.0,0.00022191,2]
[358607188,1745308256372,-242.230268,0.00022191,7]
[358607189,1745308256382,-465.30779957,0.00022191,2]
[358607190,1745308256392,-500.0,0.00022191,2]
[358607191,1745308256403,-195.03961695,0.00022191,2]
[358607192,1745308256412,-502.60782368,0.00022191,2]
[358607193,1745308256422,-500.0,0.00022191,2]
[358607194,1745308256432,-500.0,0.00022191,2]
[358607195,1745308256442,-500.0,0.00022191,2]
[358607196,1745308256452,-500.0,0.00022191,2]
[358607197,1745308256462,-500.0,0.00022191,2]
[358607198,1745308256472,-500.0,0.00022191,2]
[358607199,1745308256482,-500.0,0.00022191,2]
[358607200,1745308256492,-500.0,0.00022191,2]
[358607201,1745308256502,-273.000349,0.00022191,7]
[358607202,1745308256512,-273.000349,0.00022191,7]
[358607203,1745308256522,-503.57834202,0.00022191,2]
[358607204,1745308256531,-273.000349,0.00022191,7]
[358607205,1745308256541,-655.105844,0.00022191,7]
[358607206,1745308256550,-655.105844,0.00022191,7]
[358607207,1745308256560,-655.105844,0.00022191,7]
[358607208,1745308256569,-641.23420433,0.00022191,2]
[358607209,1745308256579,-273.000349,0.00022191,7]
[358607210,1745308256588,-273.000349,0.00022191,7]
[358607211,1745308256598,-500.0,0.00022191,2]
[358607212,1745308256608,-273.000349,0.00022191,7]
[358607213,1745308256617,-655.105844,0.00022191,7]
[358607214,1745308256627,-622.15,0.00022191,2]
[358607215,1745308256636,-655.105844,0.00022191,7]
[358607216,1745308256646,-655.105844,0.00022191,7]
[358607217,1745308256655,-500.0,0.00022191,2]
[358607218,1745308256664,-501.47375915,0.00022191,2]
[358607219,1745308256674,-1577.93,0.00022191,2]
[358607220,1745308256683,-500.0,0.00022191,2]
[358607221,1745308256693,-501.27530045,0.00022191,2]
[358607222,1745308256703,-500.0,0.00022191,2]
[358607223,1745308256712,-500.0,0.00022191,2]
[358607224,1745308256722,-500.0,0.00022191,2]
[358607225,1745308256733,-500.0,0.00022191,2]
[358607226,1745308256743,-1423.59,0.00022191,2]
[358607227,1745308256753,-504.40342907,0.00022191,2]
[358607228,1745308256763,-151.0,0.00022191,7]
[358607229,1745308256772,-151.0,0.00022191,7]
[358607230,1745308256782,-151.0,0.00022191,7]
[358607231,1745308256792,-506.93384636,0.00022191,2]
[358607232,1745308256801,-500.0,0.00022191,2]
[358607233,1745308256811,-500.0,0.00022191,2]
[358607234,1745308256821,-500.0,0.00022191,2]
[358607235,1745308256831,-500.0,0.00022191,2]
[358607236,1745308256842,-500.0,0.00022191,2]
[358607237,1745308256851,-500.0,0.00022191,2]
[358607238,1745308256861,-500.0,0.00022191,2]
[358607239,1745308256870,-509.97,0.00022191,2]
[358607240,1745308256881,-500.0,0.00022191,2]
[358607241,1745308256890,-505.78892999,0.00022191,2]
[358607242,1745308256900,-512.12030299,0.00022191,2]
[358607243,1745308256910,-500.0,0.00022191,2]
[358607244,1745308256919,-579.04,0.00022191,2]
[358607245,1745308256929,-609.24,0.00022191,2]
[358607246,1745308256938,-729.16666667,0.00022191,7]
[358607247,1745308256948,-160.0,0.00022191,7]
[358607248,1745308256958,-500.0,0.00022191,2]
[358607249,1745308256968,-500.0,0.00022191,2]
[358607250,1745308256979,-1000.0,0.00022191,2]
[358607251,1745308256990,-1232.5,0.00022191,2]
[358607252,1745308257000,-882.54,0.00022191,2]
[358607253,1745308257010,-500.0,0.00022191,2]
[358607254,1745308257019,-500.0,0.00022191,2]
[358607255,1745308257031,-500.0,0.00022191,2]
[358607256,1745308257042,-501.38540952,0.00022191,2]
[358607257,1745308257054,-749.92,0.00022191,2]
[358607258,1745308257065,-500.0,0.00022191,2]
[358607259,1745308257075,-500.0,0.00022191,2]
[358607260,1745308257086,-500.0,0.00022191,2]
[358607261,1745308257096,-500.0,0.00022191,2]
[358607262,1745308257106,-252.59798148,0.00022191,2]
[358607263,1745308257437,-247.40201852,0.00022191,2]
[358607264,1745308257448,-500.0,0.00022191,2]
[358607265,1745308257458,-500.0,0.00022191,2]
[358607266,1745308257469,-562.32041676,0.00022191,2]
[358607267,1745308257480,-424.08955261,0.00022191,2]
[358607268,1745308257491,-640.28632728,0.00022191,2]
[358607269,1745308257501,-500.0,0.00022191,2]
[358607270,1745308257511,-500.0,0.00022191,2]
[358607271,1745308257520,-500.0,0.00022191,2]
[358607272,1745308257530,-500.0,0.00022191,2]
[358607273,1745308257540,-88.56470506,0.00022191,2]
[358607274,1745308257552,-411.43529494,0.00022191,2]
[358607275,1745308257563,-500.0,0.00022191,2]
[358607276,1745308257572,-500.0,0.00022191,2]
[358607277,1745308257582,-500.0,0.00022191,2]
[358607278,1745308257591,-241.34760506,0.00022191,2]
[358607279,1745308257605,-258.65239494,0.00022191,2]
[358607280,1745308257616,-500.0,0.00022191,2]
[358607281,1745308257625,-173.58547447,0.00022191,2]
[358607282,1745308257635,-500.0,0.00022191,2]
[358607283,1745308257645,-500.0,0.00022191,2]
[358607284,1745308257655,-500.0,0.00022191,2]
[358607285,1745308257665,-500.0,0.00022191,2]
[358607286,1745308257675,-500.0,0.00022191,2]
[358607287,1745308257684,-500.0,0.00022191,2]
[358607288,1745308257694,-500.0,0.00022191,2]
[358607289,1745308257704,-500.0,0.00022191,2]
[358607290,1745308257713,-500.0,0.00022191,2]
[358607291,1745308257723,-500.0,0.00022191,2]
[358607292,1745308257734,-500.0,0.00022191,2]
[358607293,1745308257744,-500.0,0.00022191,2]
[358607294,1745308257754,-500.0,0.00022191,2]
[358607295,1745308257764,-500.0,0.00022191,2]
[358607296,1745308257775,-500.0,0.00022191,2]
[358607297,1745308257785,-500.0,0.00022191,2]
[358607298,1745308257795,-500.0,0.00022191,2]
[358607299,1745308257805,-500.0,0.00022191,2]
[358607300,1745308257818,-500.0,0.00022191,2]
[358607301,1745308257837,-319.88564339,0.00022191,2]
[358607302,1745308257954,-500.0,0.00021917,2]
[358607303,1745308257964,-180.11435661,0.00022191,2]
[358607304,1745308257974,-500.0,0.00022191,2]
[358607305,1745308257984,-500.0,0.00022191,2]
[358607306,1745308257994,-7.19816132,0.00022191,2]
[358607307,1745308258006,-498.65552151,0.00022191,2]
[358607308,1745308258016,-1976.69,0.00022191,2]
[358607309,1745308258026,-500.0,0.00022191,2]
[358607310,1745308258036,-544.72591149,0.00022191,2]
[358607311,1745308258046,-916.64641962,0.00022191,2]
[358607312,1745308258058,-394.78358038,0.00022191,2]
[358607313,1745308258067,-500.0,0.00022191,2]
[358607314,1745308258077,-500.0,0.00022191,2]
[358607315,1745308258086,-500.0,0.00022191,2]
[358607316,1745308258096,-500.0,0.00022191,2]
[358607317,1745308258106,-500.0,0.00022191,2]
[358607318,1745308258115,-500.0,0.00022191,2]
[358607319,1745308258125,-4711.81,0.00022191,2]
[358607320,1745308258134,-500.0,0.00022191,2]
[358607321,1745308258143,-500.0,0.00022191,2]
[358607322,1745308258153,-500.0,0.00022191,2]
[358607323,1745308258163,-500.0,0.00022191,2]
[358607324,1745308258173,-500.0,0.00022191,2]
[358607325,1745308258183,-500.0,0.00022191,2]
[358607326,1745308258192,-500.0,0.00022191,2]
[358607327,1745308258202,-500.0,0.00022191,2]
[358607328,1745308258211,-500.0,0.00022191,2]
[358607329,1745308258221,-762.11,0.00022191,2]
[358607330,1745308258231,-500.0,0.00022191,2]
[358607331,1745308258243,-500.0,0.00022191,2]
[358607332,1745308258253,-500.0,0.00022191,2]
[358607333,1745308258263,-500.0,0.00022191,2]
[358607334,1745308258272,-850.92,0.00022191,2]
[358607335,1745308258281,-500.0,0.00022191,2]
[358607336,1745308258291,-500.0,0.00022191,2]
[358607337,1745308258301,-502.7705392,0.00022191,2]
[358607338,1745308258310,-558.65,0.00022191,2]
[358607339,1745308258320,-500.0,0.00022191,2]
[358607340,1745308258329,-500.0,0.00022191,2]
[358607341,1745308258339,-500.0,0.00022191,2]
[358607342,1745308258349,-500.0,0.00022191,2]
[358607343,1745308258358,-500.0,0.00022191,2]
[358607344,1745308258368,-500.0,0.00022191,2]
[358607345,1745308258377,-1763.243502,0.00022191,7]
[358607346,1745308258387,-1763.243502,0.00022191,7]
[358607347,1745308258396,-1763.243502,0.00022191,7]
[358607348,1745308258406,-1763.243502,0.00022191,7]
[358607349,1745308258416,-500.0,0.00022191,2]
[358607350,1745308258426,-8373.38,0.00022191,2]
[358607351,1745308258436,-500.0,0.00022191,2]
[358607352,1745308258446,-500.0,0.00022191,2]
[358607353,1745308258456,-1763.243502,0.00022191,7]
[358607354,1745308258466,-500.0,0.00022191,2]
[358607355,1745308258476,-1763.243502,0.00022191,7]
[358607356,1745308258486,-1763.243502,0.00022191,7]
[358607357,1745308258495,-500.0,0.00022191,2]
[358607358,1745308258505,-500.0,0.00022191,2]
[358607359,1745308258514,-354.4175142,0.00022191,7]
[358607360,1745308258576,-502.19177571,0.00021917,2]
[358607361,1745308258585,-483.56531306,0.00022191,7]
[358607362,1745308258706,-500.0,0.00022191,7]
[358607363,1745308258718,-324.65567513,0.00022191,7]
[358607364,1745308258729,-100.60499961,0.00022191,7]
[358607365,1745308258739,-548.228179,0.00022191,7]
[358607366,1745308258749,-548.228179,0.00022191,7]
[358607367,1745308258759,-548.228179,0.00022191,7]
[358607368,1745308258768,-500.0,0.00022191,2]
[358607369,1745308258778,-215.05895976,0.00022191,2]
[358607370,1745308258791,-284.94104024,0.00022191,2]
[358607371,1745308258800,-500.0,0.00022191,2]
[358607372,1745308258809,-548.228179,0.00022191,7]
[358607373,1745308258818,-548.228179,0.00022191,7]
[358607374,1745308258827,-548.228179,0.00022191,7]
[358607375,1745308258837,-5785.84,0.00022191,2]
[358607376,1745308258846,-500.0,0.00022191,2]
[358607377,1745308258856,-500.0,0.00022191,2]
[358607378,1745308258865,-500.0,0.00022191,2]
[358607379,1745308258875,-506.40693056,0.00022191,2]
[358607380,1745308258884,-500.0,0.00022191,2]
[358607381,1745308258893,-500.0,0.00022191,2]
[358607382,1745308258903,-500.0,0.00022191,2]
[358607383,1745308258914,-288.55203198,0.000224,4]
[358607384,1745308258923,-223.554719,0.00022465,7]
[358607385,1745308258933,-151.0,0.00022465,7]
[358607386,1745308258943,-151.0,0.00022465,7]
[358607387,1745308258953,-151.0,0.00022465,2]
[358607388,1745308258962,-151.0,0.00022465,2]
[358607389,1745308258972,-502.73462613,0.00022465,2]
[358607390,1745308258982,-502.68867353,0.00022465,2]
[358607391,1745308258991,-318.88977368,0.00022465,2]
[358607398,1745308417318,1091.35489805,0.00018064,2]
[358607423,1745308803145,41269.99999901,0.0002,2]
[358607424,1745308869361,275.38782196,0.0003,30]
[358607428,1745309419215,500.0,0.0003,30]
[358607452,1745309432261,-240.419686,0.00020646,2]
[358607454,1745309432271,-138.64636238,0.00021396,2]
[358607466,1745309438384,-1061.35363762,0.00021396,2]
[358607467,1745309438395,-5000.0,0.00021397,2]
[358607468,1745309438405,-333.01870165,0.0002151,2]
[358607469,1745309438415,-2408.65982226,0.0002161,2]
[358607470,1745309438425,-250.0,0.00021611,2]
[358607471,1745309438436,-300.0,0.00021691,2]
[358607472,1745309438448,-2276.5966922,0.00021692,2]
[358607473,1745309438458,-50000.0,0.0002171,2]
[358607474,1745309438468,-552.25238487,0.0002171,2]
[358607475,1745309438479,-539.154681,0.0002171,2]
[358607476,1745309438488,-500.0,0.0002171,2]
[358607477,1745309438499,-639.84308729,0.0002171,2]
[358607478,1745309438509,-500.0,0.0002171,2]
[358607479,1745309438520,-500.0,0.0002171,2]
[358607480,1745309438530,-270.0,0.0002171,2]
[358607481,1745309438540,-500.0,0.0002171,2]
[358607482,1745309438550,-272.10644501,0.0002171,2]
[358607483,1745309438560,-500.0,0.0002171,2]
[358607484,1745309438570,-231.54657642,0.0002171,2]
[358607485,1745309438580,-500.0,0.0002171,2]
[358607486,1745309438592,-202.96172792,0.0002171,2]
[358607487,1745309438602,-295.94662195,0.0002171,2]
[358607488,1745309438611,-370000.0,0.00021711,2]
[358607489,1745309438621,-161.42759235,0.0002179,2]
[358607490,1745309438632,-161.42759233,0.00021804,2]
[358607491,1745309438642,-161.42759233,0.00021817,2]
[358607492,1745309438653,-1000.0,0.0002189,2]
[358607493,1745309438662,-1000.0,0.0002189,2]
[358607494,1745309438672,-1000.0,0.0002189,2]
[358607495,1745309438682,-1000.0,0.0002189,2]
[358607496,1745309438692,-340.07268708,0.0002189,2]
[358607497,1745309438702,-207.4,0.00021904,2]
[358607498,1745309438712,-500.0,0.00021917,2]
[358607499,1745309438723,-575.75777399,0.00021917,2]
[358607500,1745309438734,-500.0,0.00021917,2]
[358607501,1745309438745,-500.0,0.00021917,2]
[358607502,1745309438757,-500.0,0.00021917,2]
[358607503,1745309438768,-500.0,0.00021917,2]
[358607504,1745309438777,-500.0,0.00021917,2]
[358607505,1745309438789,-151.0,0.00021917,2]
[358607506,1745309438800,-502.6367566,0.00021917,2]
[358607507,1745309438810,-151.0,0.00021917,2]
[358607508,1745309438820,-151.0,0.00021917,2]
[358607509,1745309438830,-151.0,0.00021917,2]
[358607510,1745309438843,-151.0,0.00021917,2]
[358607511,1745309438853,-547.01769651,0.00021917,2]
[358607512,1745309438863,-151.0,0.00021917,2]
[358607513,1745309438873,-151.0,0.00021917,2]
[358607514,1745309438883,-151.0,0.00021917,2]
[358607515,1745309438893,-151.0,0.00021917,2]
[358607516,1745309438903,-151.0,0.00021917,2]
[358607517,1745309438914,-500.0,0.00021917,2]
[358607518,1745309438924,-628.46444244,0.00021917,2]
[358607519,1745309438934,-501.06957214,0.00021917,2]
[358607520,1745309438944,-500.0,0.00021917,2]
[358607521,1745309438955,-212.65639608,0.00021917,2]
[358607522,1745309438967,-500.0,0.00021917,2]
[358607523,1745309438976,-500.0,0.00021917,2]
[358607524,1745309438986,-500.0,0.00021917,2]
[358607525,1745309438996,-500.0,0.00021917,2]
[358607526,1745309439007,-500.0,0.00021917,2]
[358607527,1745309439017,-500.0,0.00021917,2]
[358607528,1745309439028,-500.0,0.00021917,2]
[358607529,1745309439041,-500.0,0.00021917,2]
[358607530,1745309439051,-500.0,0.00021917,2]
[358607531,1745309439061,-500.0,0.00021917,2]
[358607532,1745309439071,-500.96735198,0.00021917,2]
[358607533,1745309439081,-500.0,0.00021917,2]
[358607534,1745309439091,-500.0,0.00021917,2]
[358607535,1745309439101,-502.2594155,0.00021917,2]
[358607536,1745309439110,-500.0,0.00021917,2]
[358607537,1745309439120,-500.0,0.00021917,2]
[358607538,1745309439130,-500.0,0.00021917,2]
[358607539,1745309439140,-500.0,0.00021917,2]
[358607540,1745309439149,-500.0,0.00021917,2]
[358607541,1745309439159,-500.0,0.00021917,2]
[358607542,1745309439169,-500.0,0.00021917,2]
[358607543,1745309439179,-151.0,0.00021917,2]
[358607544,1745309439188,-500.0,0.00021917,2]
[358607545,1745309439200,-151.0,0.00021917,2]
[358607546,1745309439210,-500.0,0.00021917,2]
[358607547,1745309439220,-500.0,0.00021917,2]
[358607548,1745309439230,-156.4152992,0.00021917,2]
[358607549,1745309439240,-500.0,0.00021917,2]
[358607550,1745309439251,-500.0,0.00021917,2]
[358607551,1745309439262,-500.0,0.00021917,2]
[358607552,1745309439272,-500.0,0.00021917,2]
[358607553,1745309439282,-500.0,0.00021917,2]
[358607554,1745309439292,-500.0,0.00021917,2]
[358607555,1745309439303,-500.0,0.00021917,2]
[358607556,1745309439312,-500.0,0.00021917,2]
[358607557,1745309439322,-500.0,0.00021917,2]
[358607558,1745309439332,-500.0,0.00021917,2]
[358607559,1745309439342,-500.0,0.00021917,2]
[358607560,1745309439353,-500.0,0.00021917,2]
[358607561,1745309439363,-500.0,0.00021917,2]
[358607562,1745309439373,-500.0,0.00021917,2]
[358607563,1745309439384,-500.0,0.00021917,2]
[358607564,1745309439393,-500.0,0.00021917,2]
[358607565,1745309439404,-500.0,0.00021917,2]
[358607566,1745309439414,-501.94659805,0.00021917,2]
[358607567,1745309439424,-500.0,0.00021917,2]
[358607568,1745309439433,-500.0,0.00021917,2]
[358607569,1745309439443,-500.0,0.00021917,2]
[358607570,1745309439453,-500.0,0.00021917,2]
[358607571,1745309439463,-500.0,0.00021917,2]
[358607572,1745309439474,-647.39,0.00021917,2]
[358607573,1745309439483,-500.0,0.00021917,2]
[358607574,1745309439493,-500.0,0.00021917,2]
[358607575,1745309439503,-500.0,0.00021917,2]
[358607576,1745309439514,-500.0,0.00021917,2]
[358607577,1745309439524,-500.0,0.00021917,2]
[358607578,1745309439536,-432.62457983,0.00021917,2]
[358607579,1745309439545,-500.0,0.00021917,2]
[358607580,1745309439555,-500.0,0.00021917,2]
[358607581,1745309439567,-500.0,0.00021917,2]
[358607582,1745309439576,-500.0,0.00021917,2]
[358607583,1745309439587,-500.0,0.00021917,2]
[358607584,1745309439598,-500.0,0.00021917,2]
[358607585,1745309439608,-500.0,0.00021917,2]
[358607586,1745309439618,-500.0,0.00021917,2]
[358607587,1745309439627,-500.0,0.00021917,2]
[358607588,1745309439637,-502.22130498,0.00021917,2]
[358607589,1745309439648,-500.0,0.00021917,2]
[358607590,1745309439659,-500.0,0.00021917,2]
[358607591,1745309439669,-500.0,0.00021917,2]
[358607592,1745309439680,-500.0,0.00021917,2]
[358607593,1745309439690,-500.0,0.00021917,2]
[358607594,1745309439700,-500.0,0.00021917,2]
[358607595,1745309439710,-500.0,0.00021917,2]
[358607596,1745309439720,-500.0,0.00021917,2]
[358607597,1745309439733,-500.0,0.00021917,2]
[358607599,1745309439745,-500.0,0.00021917,2]
[358607601,1745309439755,-500.89204275,0.00021917,2]
[358607603,1745309439766,-500.0,0.00021917,2]
[358607604,1745309439776,-500.0,0.00021917,2]